[Event "GER-ch Rapid Women 2017"]
[Site "Erfurt"]
[Date "2017.07.30"]
[Round "8"]
[White "Osmanodja, Filiz"]
[Black "Zahn, Alina"]
[Result "0-1"]
[ECO "C77"]
[WhiteElo "2273"]
[BlackElo "2025"]
[Annotator "NA"]
[PlyCount "108"]
[EventDate "2017.??.??"]
[EventType "swiss"]
[EventCountry "GER"]
[SourceTitle "playchess.com"]
[Source "ChessBase"]
[SourceQuality "1"]
[TimeControl "1200"]

1. e4 {[%emt 0:00:01]} e5 {[%emt 0:00:00]} 2. Nf3 {[%emt 0:00:01]} Nc6 {[%emt 0:00:01]} 3. Bb5 {[%emt 0:00:01]} a6 {[%emt 0:00:01]} 4. Ba4 {[%emt 0:00:01]} Nf6 {[%emt 0:00:01]} 5. d3 {[%emt 0:00:01]} b5 {[%emt 0:00:04]} 6. Bb3 {[%emt 0:00:00]} Be7 {[%emt 0:00:03]} 7. O-O {[%emt 0:00:03]} O-O {[%emt 0:00:02]} 8. a4 {[%emt 0:00:02]} b4 {[%emt 0:00:28]} 9. Re1 {[%emt 0:00:22]} d6 {[%emt 0:00:05]} 10. Nbd2 {[%emt 0:00:19]} Na5 {[%emt 0:00:06]} 11. d4 {[%emt 0:00:42]} Nxb3 {[%emt 0:00:20]} 12. Nxb3 {[%emt 0:00:26]} exd4 {[%emt 0:00:07]} 13. Nfxd4 {[%emt 0:00:23]} Bb7 {[%emt 0:00:03]} 14. Na5 {[%emt 0:00:33]} Qc8 {[%emt 0:00:50]} 15. Ndc6 {[%emt 0:01:30]} Re8 {[%emt 0:00:34]} 16. Bg5 {[%emt 0:01:28]} Bxc6 {[%emt 0:00:52]} 17. Nxc6 {[%emt 0:00:01]} Qd7 {[%emt 0:00:11]} 18. Nxb4 {[%emt 0:01:58]} Nxe4 {[%emt 0:01:23]} 19. Bxe7 {[%emt 0:00:03]} Rxe7 {[%emt 0:00:03]} 20. Nd5 {[%emt 0:03:35]} Re5 {[%emt 0:01:00]} 21. f3 {[%emt 0:01:02]} Nc5 {[%emt 0:00:32]} 22. Rxe5 {[%emt 0:01:26]} dxe5 {[%emt 0:00:04]} 23. b4 {[%emt 0:00:02]} Rd8 {[%emt 0:00:13]} 24. c4 {[%emt 0:00:36]} Ne6 {[%emt 0:00:26]} 25. Ne3 {[%emt 0:01:56]} Qe7 {[%emt 0:00:33]} 26. Qe1 {[%emt 0:00:16]} Nd4 {[%emt 0:00:20]} 27. Rd1 {[%emt 0:00:01]} Qg5 {[%emt 0:00:37]} 28. Qf2 {[%emt 0:00:10]} Rd6 {[%emt 0:00:34]} 29. c5 {[%emt 0:00:19]} Rf6 {[%emt 0:00:28]} 30. Kf1 {[%emt 0:00:05]} h6 {[%emt 0:00:05]} 31. Ng4 {[%emt 0:00:03]} Re6 {[%emt 0:00:22]} 32. h4 {[%emt 0:00:21]} Qe7 {[%emt 0:00:14]} 33. Nxe5 {[%emt 0:00:08]} Nf5 {[%emt 0:00:49]} 34. Rd7 {[%emt 0:00:15]} Qf6 {[%emt 0:00:04]} 35. f4 {[%emt 0:00:25]} Re7 {[%emt 0:03:46]} 36. Rxe7 {[%emt 0:00:01]} Qxe7 {[%emt 0:00:01]} 37. g3 {[%emt 0:00:01]} Qe8 {[%emt 0:00:13]} 38. c6 {[%emt 0:00:04]} Qe7 {[%emt 0:00:04]} 39. Qc5 {[%emt 0:00:05]} Nxg3+ {[%emt 0:00:07]} 40. Kg2 {[%emt 0:00:04]} Qxh4 {[%emt 0:00:16]} 41. Qf2 {[%emt 0:00:04]} Nf5 {[%emt 0:00:11]} 42. Qxh4 {[%emt 0:00:02]} Nxh4+ {[%emt 0:00:01]} 43. Kh3 {[%emt 0:00:02]} Nf5 {[%emt 0:00:01]} 44. b5 {[%emt 0:00:08]} axb5 {[%emt 0:00:14]} 45. a5 {[%emt 0:00:01]} Ne7 {[%emt 0:00:30]} 46. a6 {[%emt 0:00:01]} Nc8 {[%emt 0:00:01]} 47. Kg3 {[%emt 0:00:05]} Kf8 {[%emt 0:00:07]} 48. Kf3 {[%emt 0:00:07]} Ke7 {[%emt 0:00:01]} 49. Ke4 {[%emt 0:00:02]} f6 {[%emt 0:00:04]} 50. Nd3 {[%emt 0:00:08]} Kd6 {[%emt 0:00:01]} 51. Kf5 {[%emt 0:00:13]} Ne7+ {[%emt 0:00:30]} 52. Kg4 {[%emt 0:00:01]} Kxc6 {[%emt 0:00:07]} 53. Kh5 {[%emt 0:00:02]} Kb6 {[%emt 0:00:03]} 54. Nb4 {[%emt 0:00:01]} c5 {[%emt 0:00:02]} 0-1

[Event "GER-ch Rapid Women 2017"]
[Site "Erfurt"]
[Date "2017.07.30"]
[Round "8"]
[White "Rogozenco, Teodora"]
[Black "Ries, Jutta"]
[Result "1-0"]
[ECO "A59"]
[WhiteElo "2169"]
[BlackElo "2051"]
[Annotator "NA"]
[PlyCount "125"]
[EventDate "2017.??.??"]
[EventType "swiss"]
[EventCountry "GER"]
[SourceTitle "playchess.com"]
[Source "ChessBase"]
[SourceQuality "1"]
[TimeControl "1200"]

1. d4 {[%emt 0:00:01]} Nf6 {[%emt 0:00:01]} 2. c4 {[%emt 0:00:01]} c5 {[%emt 0:00:01]} 3. d5 {[%emt 0:00:01]} b5 {[%emt 0:00:01]} 4. cxb5 {[%emt 0:00:01]} a6 {[%emt 0:00:01]} 5. bxa6 {[%emt 0:00:02]} Bxa6 {[%emt 0:00:02]} 6. Nc3 {[%emt 0:00:01]} g6 {[%emt 0:00:03]} 7. e4 {[%emt 0:00:01]} Bxf1 {[%emt 0:00:03]} 8. Kxf1 {[%emt 0:00:01]} d6 {[%emt 0:00:04]} 9. g3 {[%emt 0:00:02]} Bg7 {[%emt 0:00:01]} 10. Nf3 {[%emt 0:00:01]} O-O {[%emt 0:00:03]} 11. Kg2 {[%emt 0:00:01]} Na6 {[%emt 0:00:29]} 12. Qe2 {[%emt 0:00:57]} Qb6 {[%emt 0:01:13]} 13. Nd2 {[%emt 0:01:02]} Nd7 {[%emt 0:00:46]} 14. a4 {[%emt 0:01:06]} Nb4 {[%emt 0:00:21]} 15. Nb5 {[%emt 0:00:32]} Qb7 {[%emt 0:00:47]} 16. Nc4 {[%emt 0:00:47]} Nb6 {[%emt 0:00:27]} 17. Ne3 {[%emt 0:01:13]} Rxa4 {[%emt 0:00:52]} 18. Rxa4 {[%emt 0:01:11]} Nxa4 {[%emt 0:00:02]} 19. b3 {[%emt 0:00:02]} Nc3 {[%emt 0:01:04]} 20. Nxc3 {[%emt 0:00:02]} Bxc3 {[%emt 0:00:01]} 21. Bb2 {[%emt 0:00:08]} Bxb2 {[%emt 0:01:10]} 22. Qxb2 {[%emt 0:00:02]} Ra8 {[%emt 0:00:36]} 23. Ra1 {[%emt 0:00:02]} Rxa1 {[%emt 0:02:57]} 24. Qxa1 {[%emt 0:00:01]} Nc2 {[%emt 0:00:30]} 25. Nxc2 {[%emt 0:00:38]} Qxb3 {[%emt 0:00:06]} 26. Ne3 {[%emt 0:00:09]} Qd3 {[%emt 0:00:10]} 27. Qa4 {[%emt 0:00:12]} Kg7 {[%emt 0:00:35]} 28. Kf3 {[%emt 0:00:25]} Qb1 {[%emt 0:00:25]} 29. Qd1 {[%emt 0:00:12]} Qb4 {[%emt 0:01:05]} 30. Qc2 {[%emt 0:00:06]} Qe1 {[%emt 0:00:15]} 31. Qd1 {[%emt 0:00:03]} Qb4 {[%emt 0:00:02]} 32. Qa1+ {[%emt 0:00:03]} f6 {[%emt 0:00:07]} 33. Qc1 {[%emt 0:01:20]} h5 {[%emt 0:00:10]} 34. h4 {[%emt 0:00:32]} Qb3 {[%emt 0:00:30]} 35. Qc4 {[%emt 0:00:06]} Qb1 {[%emt 0:00:10]} 36. Kg2 {[%emt 0:00:01]} Qe1 {[%emt 0:00:22]} 37. Nc2 {[%emt 0:00:19]} Qd2 {[%emt 0:00:21]} 38. Na3 {[%emt 0:00:08]} g5 {[%emt 0:00:16]} 39. hxg5 {[%emt 0:00:21]} Qxg5 {[%emt 0:00:02]} 40. Nc2 {[%emt 0:00:35]} h4 {[%emt 0:00:07]} 41. Ne3 {[%emt 0:00:34]} hxg3 {[%emt 0:00:14]} 42. Nf5+ {[%emt 0:00:01]} Kf7 {[%emt 0:00:07]} 43. Nxg3 {[%emt 0:00:28]} Qg4 {[%emt 0:00:10]} 44. Qe2 {[%emt 0:00:08]} Qg5 {[%emt 0:00:06]} 45. Qh5+ {[%emt 0:00:15]} Qxh5 {[%emt 0:01:06]} 46. Nxh5 {[%emt 0:00:01]} e6 {[%emt 0:00:56]} 47. Kf3 {[%emt 0:01:06]} f5 {[%emt 0:00:12]} 48. exf5 {[%emt 0:00:07]} exd5 {[%emt 0:00:02]} 49. Ke3 {[%emt 0:00:42]} d4+ {[%emt 0:00:02]} 50. Ke4 {[%emt 0:00:03]} d5+ {[%emt 0:00:02]} 51. Kd3 {[%emt 0:00:34]} Ke7 {[%emt 0:00:01]} 52. f3 {[%emt 0:00:16]} Kf7 {[%emt 0:00:00]} 53. f6 {[%emt 0:01:12]} Kg6 {[%emt 0:00:06]} 54. f4 {[%emt 0:00:02]} Kf7 {[%emt 0:00:02]} 55. f5 {[%emt 0:00:01]} Kf8 {[%emt 0:00:02]} 56. Nf4 {[%emt 0:00:01]} Kf7 {[%emt 0:00:04]} 57. Nxd5 {[%emt 0:00:01]} Ke8 {[%emt 0:00:04]} 58. Kc4 {[%emt 0:00:01]} Kf7 {[%emt 0:00:05]} 59. Kxc5 {[%emt 0:00:26]} d3 {[%emt 0:00:01]} 60. Kd4 {[%emt 0:00:02]} d2 {[%emt 0:00:02]} 61. Ne3 {[%emt 0:00:00]} Kxf6 {[%emt 0:00:01]} 62. Ke4 {[%emt 0:00:07]} Kf7 {[%emt 0:00:01]} 63. Kd3 {[%emt 0:00:04]} 1-0

[Event "GER-ch Rapid Women 2017"]
[Site "Erfurt"]
[Date "2017.07.30"]
[Round "8"]
[White "Birkholz, Olga"]
[Black "Kinzel, Tiffany"]
[Result "1-0"]
[ECO "D00"]
[WhiteElo "2076"]
[BlackElo "1755"]
[Annotator "NA"]
[PlyCount "69"]
[EventDate "2017.??.??"]
[EventType "swiss"]
[EventCountry "GER"]
[SourceTitle "playchess.com"]
[Source "ChessBase"]
[SourceQuality "1"]
[TimeControl "1200"]

1. d4 {[%emt 0:00:02]} d5 {[%emt 0:00:02]} 2. Nc3 {[%emt 0:00:03]} e6 {[%emt 0:00:10]} 3. Bf4 {[%emt 0:00:02]} Nf6 {[%emt 0:00:17]} 4. e3 {[%emt 0:00:06]} c5 {[%emt 0:00:09]} 5. Nf3 {[%emt 0:00:08]} Nc6 {[%emt 0:00:13]} 6. a3 {[%emt 0:00:25]} a6 {[%emt 0:00:32]} 7. Bd3 {[%emt 0:00:21]} c4 {[%emt 0:00:53]} 8. Be2 {[%emt 0:00:01]} b5 {[%emt 0:00:16]} 9. O-O {[%emt 0:00:02]} Be7 {[%emt 0:00:13]} 10. Ne5 {[%emt 0:00:16]} Nxe5 {[%emt 0:00:28]} 11. dxe5 {[%emt 0:01:16]} Nd7 {[%emt 0:00:04]} 12. e4 {[%emt 0:00:25]} Bb7 {[%emt 0:02:04]} 13. exd5 {[%emt 0:00:22]} exd5 {[%emt 0:01:00]} 14. Nxd5 {[%emt 0:01:32]} O-O {[%emt 0:02:18]} 15. Bf3 {[%emt 0:01:27]} Nc5 {[%emt 0:04:10]} 16. Be3 {[%emt 0:02:04]} Rb8 {[%emt 0:00:09]} 17. Qd2 {[%emt 0:01:05]} Bxd5 {[%emt 0:01:19]} 18. Bxd5 {[%emt 0:00:12]} Qc7 {[%emt 0:01:00]} 19. f4 {[%emt 0:00:09]} Rbd8 {[%emt 0:00:05]} 20. Rad1 {[%emt 0:00:15]} Rfe8 {[%emt 0:01:07]} 21. Qe2 {[%emt 0:00:12]} Bf8 {[%emt 0:00:19]} 22. Kh1 {[%emt 0:00:08]} Ne6 {[%emt 0:00:07]} 23. Qf2 {[%emt 0:00:34]} Bc5 {[%emt 0:00:12]} 24. Bxe6 {[%emt 0:00:32]} Bxe3 {[%emt 0:00:03]} 25. Bxf7+ {[%emt 0:00:04]} Qxf7 {[%emt 0:00:10]} 26. Qxe3 {[%emt 0:00:02]} Rc8 {[%emt 0:00:20]} 27. f5 {[%emt 0:00:27]} Qc7 {[%emt 0:00:30]} 28. e6 {[%emt 0:00:13]} Qc6 {[%emt 0:00:20]} 29. Qg5 {[%emt 0:00:34]} Rc7 {[%emt 0:00:29]} 30. Rfe1 {[%emt 0:00:30]} Qc5 {[%emt 0:00:18]} 31. Rd8 {[%emt 0:00:46]} Rce7 {[%emt 0:00:01]} 32. Rxe8+ {[%emt 0:00:42]} Rxe8 {[%emt 0:00:01]} 33. Qg4 {[%emt 0:00:00]} Qb6 {[%emt 0:00:15]} 34. f6 {[%emt 0:00:12]} Qa5 {[%emt 0:00:21]} 35. Qxg7# {[%emt 0:00:05]} 1-0

[Event "GER-ch Rapid Women 2017"]
[Site "Erfurt"]
[Date "2017.07.30"]
[Round "8"]
[White "Muetsch, Annmarie"]
[Black "Hess, Olena"]
[Result "1/2-1/2"]
[ECO "C41"]
[WhiteElo "2049"]
[BlackElo "2094"]
[Annotator "NA"]
[PlyCount "85"]
[EventDate "2017.??.??"]
[EventType "swiss"]
[EventCountry "GER"]
[SourceTitle "playchess.com"]
[Source "ChessBase"]
[SourceQuality "1"]
[TimeControl "1200"]

1. e4 {[%emt 0:00:02]} d6 {[%emt 0:00:02]} 2. d4 {[%emt 0:00:03]} Nf6 {[%emt 0:00:02]} 3. Nc3 {[%emt 0:00:02]} e5 {[%emt 0:00:03]} 4. Nf3 {[%emt 0:00:04]} Nbd7 {[%emt 0:00:07]} 5. Bc4 {[%emt 0:00:04]} Be7 {[%emt 0:00:03]} 6. O-O {[%emt 0:00:07]} O-O {[%emt 0:00:03]} 7. h3 {[%emt 0:00:18]} c6 {[%emt 0:00:02]} 8. a4 {[%emt 0:00:08]} Qc7 {[%emt 0:00:03]} 9. Be3 {[%emt 0:00:38]} b6 {[%emt 0:00:03]} 10. d5 {[%emt 0:02:06]} cxd5 {[%emt 0:01:10]} 11. Bxd5 {[%emt 0:00:58]} Bb7 {[%emt 0:00:43]} 12. Rc1 {[%emt 0:02:10]} Nxd5 {[%emt 0:01:37]} 13. exd5 {[%emt 0:00:27]} Ba6 {[%emt 0:01:19]} 14. Re1 {[%emt 0:01:42]} h6 {[%emt 0:00:02]} 15. Nb1 {[%emt 0:04:31]} f5 {[%emt 0:01:04]} 16. c4 {[%emt 0:00:12]} Rac8 {[%emt 0:05:18]} 17. b3 {[%emt 0:00:20]} Qd8 {[%emt 0:00:51]} 18. Nc3 {[%emt 0:00:15]} Qe8 {[%emt 0:01:03]} 19. Bd2 {[%emt 0:00:44]} Nc5 {[%emt 0:00:45]} 20. Be3 {[%emt 0:00:45]} Qg6 {[%emt 0:01:06]} 21. Bxc5 {[%emt 0:00:06]} Rxc5 {[%emt 0:00:08]} 22. Kh1 {[%emt 0:00:10]} Bf6 {[%emt 0:00:12]} 23. Nb5 {[%emt 0:00:32]} Bxb5 {[%emt 0:00:45]} 24. axb5 {[%emt 0:00:00]} Rc7 {[%emt 0:00:12]} 25. Qc2 {[%emt 0:00:07]} e4 {[%emt 0:00:06]} 26. Ng1 {[%emt 0:00:21]} Be5 {[%emt 0:00:01]} 27. Rcd1 {[%emt 0:00:06]} Qg5 {[%emt 0:00:06]} 28. Qe2 {[%emt 0:00:11]} Qf4 {[%emt 0:00:15]} 29. g3 {[%emt 0:00:02]} Qg5 {[%emt 0:00:01]} 30. h4 {[%emt 0:00:08]} Qg6 {[%emt 0:00:07]} 31. Nh3 {[%emt 0:00:12]} Re7 {[%emt 0:00:03]} 32. Rg1 {[%emt 0:00:30]} Qf6 {[%emt 0:00:01]} 33. Rdf1 {[%emt 0:00:05]} g5 {[%emt 0:00:11]} 34. g4 {[%emt 0:00:18]} Rg7 {[%emt 0:00:11]} 35. h5 {[%emt 0:00:09]} fxg4 {[%emt 0:00:10]} 36. Rxg4 {[%emt 0:00:03]} Qf3+ {[%emt 0:00:06]} 37. Qxf3 {[%emt 0:00:03]} Rxf3 {[%emt 0:00:01]} 38. Kg2 {[%emt 0:00:01]} Rxb3 {[%emt 0:00:02]} 39. Rxe4 {[%emt 0:00:01]} Rc3 {[%emt 0:00:06]} 40. f3 {[%emt 0:00:03]} Rc7 {[%emt 0:00:01]} 41. f4 {[%emt 0:00:02]} gxf4 {[%emt 0:00:09]} 42. Nxf4 {[%emt 0:00:02]} Bxf4 {[%emt 0:00:07]} 43. Rfxf4 {[%emt 0:00:01]} 1/2-1/2

[Event "GER-ch Rapid Women 2017"]
[Site "Erfurt"]
[Date "2017.07.30"]
[Round "8"]
[White "Daemering, Katrin"]
[Black "Rath, Alina"]
[Result "1/2-1/2"]
[ECO "A04"]
[WhiteElo "2033"]
[BlackElo "2035"]
[Annotator "NA"]
[PlyCount "77"]
[EventDate "2017.??.??"]
[EventType "swiss"]
[EventCountry "GER"]
[SourceTitle "playchess.com"]
[Source "ChessBase"]
[SourceQuality "1"]
[TimeControl "1200"]

1. Nf3 {[%emt 0:00:03]} c5 {[%emt 0:00:01]} 2. g3 {[%emt 0:00:03]} Nc6 {[%emt 0:00:02]} 3. Bg2 {[%emt 0:00:02]} g6 {[%emt 0:00:01]} 4. O-O {[%emt 0:00:07]} Bg7 {[%emt 0:00:02]} 5. d3 {[%emt 0:00:01]} e5 {[%emt 0:00:02]} 6. e4 {[%emt 0:00:12]} Nge7 {[%emt 0:00:02]} 7. Be3 {[%emt 0:00:07]} d6 {[%emt 0:00:02]} 8. h3 {[%emt 0:00:02]} O-O {[%emt 0:00:02]} 9. c3 {[%emt 0:00:23]} b6 {[%emt 0:00:05]} 10. Ne1 {[%emt 0:00:06]} h6 {[%emt 0:00:22]} 11. f4 {[%emt 0:00:10]} f5 {[%emt 0:00:14]} 12. Nd2 {[%emt 0:00:51]} Be6 {[%emt 0:00:13]} 13. Nef3 {[%emt 0:00:28]} Rc8 {[%emt 0:00:09]} 14. Qe1 {[%emt 0:01:11]} Qd7 {[%emt 0:00:11]} 15. Kh2 {[%emt 0:00:03]} Rce8 {[%emt 0:00:04]} 16. Rd1 {[%emt 0:00:34]} Kh7 {[%emt 0:00:12]} 17. Nb3 {[%emt 0:01:39]} d5 {[%emt 0:00:18]} 18. fxe5 {[%emt 0:00:46]} Nxe5 {[%emt 0:00:12]} 19. Nxe5 {[%emt 0:00:22]} Bxe5 {[%emt 0:00:03]} 20. d4 {[%emt 0:00:14]} cxd4 {[%emt 0:00:18]} 21. cxd4 {[%emt 0:00:48]} Bg7 {[%emt 0:00:03]} 22. e5 {[%emt 0:00:01]} Rc8 {[%emt 0:00:08]} 23. Qd2 {[%emt 0:00:16]} Qa4 {[%emt 0:00:24]} 24. Ra1 {[%emt 0:01:20]} Rc6 {[%emt 0:00:21]} 25. Rfc1 {[%emt 0:00:14]} Rfc8 {[%emt 0:00:02]} 26. Rc3 {[%emt 0:00:50]} Rxc3 {[%emt 0:01:11]} 27. bxc3 {[%emt 0:00:02]} Qc4 {[%emt 0:00:25]} 28. Rc1 {[%emt 0:00:11]} a5 {[%emt 0:00:04]} 29. Bf1 {[%emt 0:00:15]} Qc6 {[%emt 0:00:06]} 30. Qd3 {[%emt 0:00:23]} g5 {[%emt 0:00:53]} 31. Nd2 {[%emt 0:00:07]} Qa4 {[%emt 0:00:16]} 32. Qb1 {[%emt 0:00:16]} Qc6 {[%emt 0:00:23]} 33. Nf3 {[%emt 0:00:17]} Kh8 {[%emt 0:00:43]} 34. Bb5 {[%emt 0:00:09]} Qb7 {[%emt 0:00:02]} 35. Ne1 {[%emt 0:00:31]} Bf8 {[%emt 0:00:10]} 36. Bd3 {[%emt 0:00:06]} Qc6 {[%emt 0:00:28]} 37. Bb5 {[%emt 0:00:02]} Qb7 {[%emt 0:00:01]} 38. Bd3 {[%emt 0:00:01]} Qc6 {[%emt 0:00:01]} 39. Bb5 {[%emt 0:00:01]} 1/2-1/2

[Event "GER-ch Rapid Women 2017"]
[Site "Erfurt"]
[Date "2017.07.30"]
[Round "8"]
[White "Mader, Lena"]
[Black "Zimmer, Elke"]
[Result "1/2-1/2"]
[ECO "E67"]
[WhiteElo "1880"]
[BlackElo "1950"]
[Annotator "NA"]
[PlyCount "122"]
[EventDate "2017.??.??"]
[EventType "swiss"]
[EventCountry "GER"]
[SourceTitle "playchess.com"]
[Source "ChessBase"]
[SourceQuality "1"]
[TimeControl "1200"]

1. Nf3 {[%emt 0:00:02]} Nf6 {[%emt 0:00:01]} 2. c4 {[%emt 0:00:01]} d6 {[%emt 0:00:12]} 3. d4 {[%emt 0:00:03]} g6 {[%emt 0:00:04]} 4. g3 {[%emt 0:00:01]} Bg7 {[%emt 0:00:00]} 5. Bg2 {[%emt 0:00:02]} O-O {[%emt 0:00:03]} 6. O-O {[%emt 0:00:03]} Nbd7 {[%emt 0:00:01]} 7. Nc3 {[%emt 0:00:09]} e5 {[%emt 0:00:08]} 8. dxe5 {[%emt 0:00:19]} dxe5 {[%emt 0:00:10]} 9. e3 {[%emt 0:00:20]} Re8 {[%emt 0:00:12]} 10. b3 {[%emt 0:00:31]} c6 {[%emt 0:00:01]} 11. Bb2 {[%emt 0:00:04]} Qe7 {[%emt 0:00:06]} 12. Qc2 {[%emt 0:03:11]} Nb6 {[%emt 0:00:53]} 13. Rad1 {[%emt 0:00:34]} Bg4 {[%emt 0:00:11]} 14. h3 {[%emt 0:00:30]} Bf5 {[%emt 0:00:00]} 15. e4 {[%emt 0:00:34]} Bd7 {[%emt 0:00:01]} 16. Rd3 {[%emt 0:00:38]} Rad8 {[%emt 0:00:02]} 17. Rfd1 {[%emt 0:00:01]} Nh5 {[%emt 0:00:01]} 18. Qd2 {[%emt 0:00:52]} Rc8 {[%emt 0:02:21]} 19. Rd6 {[%emt 0:01:13]} Be6 {[%emt 0:00:24]} 20. Ng5 {[%emt 0:00:20]} Bh6 {[%emt 0:00:09]} 21. h4 {[%emt 0:00:18]} Bxg5 {[%emt 0:00:01]} 22. hxg5 {[%emt 0:00:19]} Rb8 {[%emt 0:02:03]} 23. c5 {[%emt 0:01:45]} Na8 {[%emt 0:01:44]} 24. Ne2 {[%emt 0:01:46]} Nc7 {[%emt 0:00:29]} 25. Bxe5 {[%emt 0:00:27]} Bg4 {[%emt 0:00:13]} 26. Bf6 {[%emt 0:02:00]} Nxf6 {[%emt 0:00:34]} 27. gxf6 {[%emt 0:00:08]} Qf8 {[%emt 0:00:01]} 28. f3 {[%emt 0:00:09]} Be6 {[%emt 0:00:01]} 29. Nf4 {[%emt 0:00:21]} Nb5 {[%emt 0:00:03]} 30. Nxe6 {[%emt 0:00:05]} Rxe6 {[%emt 0:00:03]} 31. Rxe6 {[%emt 0:00:08]} Qxc5+ {[%emt 0:00:04]} 32. Kh2 {[%emt 0:00:07]} fxe6 {[%emt 0:00:05]} 33. Qd7 {[%emt 0:00:21]} Qf8 {[%emt 0:00:50]} 34. Qxe6+ {[%emt 0:00:06]} Kh8 {[%emt 0:00:16]} 35. Rd7 {[%emt 0:00:25]} Re8 {[%emt 0:00:04]} 36. Qh3 {[%emt 0:00:09]} h5 {[%emt 0:00:12]} 37. g4 {[%emt 0:00:09]} Qxf6 {[%emt 0:00:03]} 38. gxh5 {[%emt 0:00:14]} Qf4+ {[%emt 0:00:30]} 39. Kg1 {[%emt 0:00:10]} g5 {[%emt 0:00:00]} 40. h6 {[%emt 0:00:15]} Nc3 {[%emt 0:00:17]} 41. Bf1 {[%emt 0:00:07]} g4 {[%emt 0:01:16]} 42. Qxg4 {[%emt 0:00:15]} Rg8 {[%emt 0:00:01]} 43. Rg7 {[%emt 0:00:04]} Qxg4+ {[%emt 0:00:01]} 44. Rxg4 {[%emt 0:00:01]} Rxg4+ {[%emt 0:00:01]} 45. fxg4 {[%emt 0:00:01]} Nxa2 {[%emt 0:00:02]} 46. g5 {[%emt 0:00:05]} Nc3 {[%emt 0:00:02]} 47. e5 {[%emt 0:00:01]} Ne4 {[%emt 0:00:02]} 48. Bh3 {[%emt 0:00:02]} Nxg5 {[%emt 0:00:02]} 49. Bf5 {[%emt 0:00:03]} a5 {[%emt 0:00:05]} 50. e6 {[%emt 0:00:03]} Kg8 {[%emt 0:00:05]} 51. h7+ {[%emt 0:00:02]} Nxh7 {[%emt 0:00:01]} 52. Bxh7+ {[%emt 0:00:00]} Kf8 {[%emt 0:00:01]} 53. Bf5 {[%emt 0:00:02]} Ke7 {[%emt 0:00:00]} 54. Kf2 {[%emt 0:00:01]} b5 {[%emt 0:00:01]} 55. Ke3 {[%emt 0:00:02]} a4 {[%emt 0:00:01]} 56. bxa4 {[%emt 0:00:00]} bxa4 {[%emt 0:00:01]} 57. Bc2 {[%emt 0:00:01]} a3 {[%emt 0:00:01]} 58. Bb3 {[%emt 0:00:01]} c5 {[%emt 0:00:00]} 59. Kd3 {[%emt 0:00:00]} Kd6 {[%emt 0:00:01]} 60. Kc3 {[%emt 0:00:01]} Kc6 {[%emt 0:00:04]} 61. e7 {[%emt 0:00:01]} Kd7 {[%emt 0:00:01]} 1/2-1/2

[Event "GER-ch Rapid Women 2017"]
[Site "Erfurt"]
[Date "2017.07.30"]
[Round "8"]
[White "Perez Celis, Alba"]
[Black "Yueksel, Anja"]
[Result "1-0"]
[ECO "C42"]
[WhiteElo "1790"]
[BlackElo "1472"]
[Annotator "NA"]
[PlyCount "53"]
[EventDate "2017.??.??"]
[EventType "swiss"]
[EventCountry "GER"]
[SourceTitle "playchess.com"]
[Source "ChessBase"]
[SourceQuality "1"]
[TimeControl "1200"]

1. e4 {[%emt 0:00:02]} e5 {[%emt 0:00:01]} 2. Nf3 {[%emt 0:00:03]} Nf6 {[%emt 0:00:01]} 3. Nxe5 {[%emt 0:00:07]} d6 {[%emt 0:00:02]} 4. Nf3 {[%emt 0:00:03]} Nxe4 {[%emt 0:00:01]} 5. Nc3 {[%emt 0:00:03]} Nc5 {[%emt 0:00:23]} 6. d4 {[%emt 0:00:08]} Qe7+ {[%emt 0:00:55]} 7. Be2 {[%emt 0:00:45]} Ne4 {[%emt 0:00:26]} 8. O-O {[%emt 0:00:28]} Bf5 {[%emt 0:00:44]} 9. Re1 {[%emt 0:01:22]} Nxc3 {[%emt 0:01:00]} 10. bxc3 {[%emt 0:00:11]} d5 {[%emt 0:00:09]} 11. Bb5+ {[%emt 0:00:28]} c6 {[%emt 0:00:56]} 12. Rxe7+ {[%emt 0:00:06]} Bxe7 {[%emt 0:00:02]} 13. Bd3 {[%emt 0:00:23]} Bg4 {[%emt 0:00:05]} 14. Qe2 {[%emt 0:00:20]} h6 {[%emt 0:01:02]} 15. Ba3 {[%emt 0:00:08]} Be6 {[%emt 0:00:10]} 16. Bxe7 {[%emt 0:00:25]} Kxe7 {[%emt 0:00:01]} 17. Rb1 {[%emt 0:00:07]} b6 {[%emt 0:00:03]} 18. c4 {[%emt 0:00:03]} Nd7 {[%emt 0:00:17]} 19. c5 {[%emt 0:00:33]} Rhe8 {[%emt 0:00:08]} 20. Ne5 {[%emt 0:00:27]} Kf8 {[%emt 0:00:11]} 21. Nxc6 {[%emt 0:00:38]} Bf5 {[%emt 0:01:26]} 22. Qf3 {[%emt 0:00:24]} Be4 {[%emt 0:00:13]} 23. Bxe4 {[%emt 0:00:58]} dxe4 {[%emt 0:00:02]} 24. Qf4 {[%emt 0:00:20]} Re6 {[%emt 0:00:54]} 25. d5 Re5 {[%emt 0:00:21]} 26. Nxe5 {[%emt 0:00:35]} Nxc5 {[%emt 0:00:36]} 27. Qxf7# {[%emt 0:00:07]} 1-0